Cogmind - Beta 10.2 @@@ ROGUE MODE // 2020.11.07 @ 21:00:31 Player: zimbolt Result: Destroyed by Y-45 Defender with Beam Rifle Performance ------------- Evolutions (2) 1000 Regions Visited (5) 1000 Robots Destroyed (35) 175 Value Destroyed (964) 964 Prototype IDs (1) 20 Alien Tech Used (0) 0 Bonus (0) 0 TOTAL SCORE: 3159 Bonus ------- None Cogmind --------- Core Integrity 0/550 Matter 272/300 Energy 100/100 System Corruption 2% Temperature Cool (9) Movement Core (550) Ox10 Location -8/Storage Parts ------- > --- POWER (1) -------- (None) > --- PROPULSION (4) --- (None) > --- UTILITY (2) ------ Large Storage Unit Large Storage Unit > --- WEAPON (4) ------- (None) > --- INVENTORY (16) --- Light Ion Engine Light Nuclear Core Visual Processing Unit Visual Processing Unit Particle Charger Improved Propulsion Shielding Drone Bay (2/2) Drone Bay (2/2) Peak State ------------ > --- POWER ------------ Light Ion Engine > --- PROPULSION ------- Improved Hover Unit Improved Hover Unit Improved Hover Unit Improved Hover Unit > --- UTILITY ---------- Large Storage Unit Large Storage Unit > --- WEAPON ----------- Beam Rifle Assault Rifle Heavy Assault Rifle Heavy Assault Rifle > --- INVENTORY -------- Light Ion Engine Improved Ion Engine Improved Hover Unit Improved Hover Unit Visual Processing Unit Visual Processing Unit Particle Charger Drone Bay Drone Bay Drone Bay Drone Bay Small Laser Heavy Assault Rifle Shotgun Mining Laser [Rating: 22] Favorites ----------- Power Light Ion Engine Engine Light Ion Engine Propulsion Improved Hover Unit Treads Light Treads Leg Aluminum Leg Hover Unit Improved Hover Unit Utility Large Storage Unit Storage Large Storage Unit Weapon Heavy Assault Rifle Energy Gun Small Laser Ballistic Gun Heavy Assault Rifle Launcher EMP Blaster Special Weapon Mining Laser Build | -11 -10 -9 -9 -8 -8 ------- Run | Scr Mat Mat Min Mat Sto Slots Evolved 4 | . . 2 . 2 . Power . | . . . . . . Propulsion 2 | . . . . 2 . Utility . | . . . . . . Weapon 2 | . . 2 . . . Parts Attached 40 | 8 2 12 . 5 13 Power 9 | 1 . 4 . . 4 Engine 9 | 1 . 4 . . 4 Core . | . . . . . . Reactor . | . . . . . . Propulsion 11 | 3 . 2 . 3 3 Treads 1 | 1 . . . . . Leg 3 | 2 . . . . 1 Wheel . | . . . . . . Hover 7 | . . 2 . 3 2 Flight . | . . . . . . Utility 4 | 2 2 . . . . Device . | . . . . . . Storage 4 | 2 2 . . . . Processor . | . . . . . . Hackware . | . . . . . . Protection . | . . . . . . Artifact . | . . . . . . Weapon 16 | 2 . 6 . 2 6 Energy Gun 6 | 2 . 1 . 1 2 Energy Cannon . | . . . . . . Ballistic Gun 8 | . . 5 . 1 2 Ballistic Cannon . | . . . . . . Launcher 1 | . . . . . 1 Special Weapon 1 | . . . . . 1 Impact Weapon . | . . . . . . Slashing Weapon . | . . . . . . Piercing Weapon . | . . . . . . Special Melee Weapon . | . . . . . . Unidentified Prototypes 1 | . . 1 . . . Parts Lost 24 | . . 5 . 1 18 Power 4 | . . 1 . . 3 Propulsion 6 | . . . . 1 5 Utility . | . . . . . . Weapon 14 | . . 4 . . 10 Highest Loss Streak 9 | . . 2 . 1 9 Average Slot Usage (%) 92 | . 98 97 100 99 77 Engine 10 | . 14 11 11 9 7 Leg 5 | . 28 8 . . 1 Hover 17 | . . 13 22 35 21 Storage 20 | . 27 22 22 18 18 Energy Gun 10 | . 28 9 11 9 7 Ballistic Gun 26 | . . 32 33 27 20 Naked Turns . | . . . . . . Heaviest Build 52 | 11 38 49 44 46 52 Greatest Support 32 | 20 20 20 16 32 32 Greatest Overweight (x) 14 | . 1 14 2 1 14 Average Overweight (x) 1 | . . 2 2 1 1 Largest Inventory Capacity 16 | 6 16 16 16 16 16 Average Capacity 14 | 5 13 16 16 16 16 Most Carried 16 | 4 9 8 7 12 16 Average Carried 7 | 2 5 5 6 7 12 Final Capacity 16 | 6 16 16 16 16 16 Final Carried 11 | 3 9 7 6 11 8 Class Distribution -------------------- 38% | Gunner 37% | Scavenger-Gunner 24% | Mutant Dominant Class ---------------- Mutant | -10/Materials Gunner | -9/Materials Scavenger-Gunner | -9/Mines Scavenger-Gunner | -8/Materials Scavenger-Gunner | -8/Storage Resources | -11 -10 -9 -9 -8 -8 ----------- Run | Scr Mat Mat Min Mat Sto Matter Collected 937 | 285 . 363 . . 289 Remotely . | . . . . . . Salvage Created 1199 | 101 . 537 . 156 405 Parts 78 | 8 . 30 . 15 25 Haulers Intercepted . | . . . . . . Recyclers Shooed 2 | . . 2 . . . Parts Field Recycled . | . . . . . . Retrieved Matter . | . . . . . . Parts Self-Destructed . | . . . . . . Prevented . | . . . . . . Kills | -11 -10 -9 -9 -8 -8 ------- Run | Scr Mat Mat Min Mat Sto Combat Hostiles Destroyed 26 | . . 11 . 3 12 Guns 26 | . . 11 . 3 12 Classes Destroyed 8 | 3 . 3 . . 2 Worker 3 | 2 . . . . 1 Builder 1 | . . . . . 1 Tunneler 1 | 1 . . . . . Recycler 1 | 1 . . . . . Watcher 3 | . . 3 . . . Swarmer 6 | . . . . . 6 Grunt 13 | . . 9 . . 4 Sentry 7 | . . 2 . 3 2 Best Kill Streak 5 | 2 . 4 . 1 5 Combat Bots Only 5 | . . 3 . 1 5 Max Kills in Single Turn 2 | 1 . 1 . 1 2 Gunslinging 1 | . . . . . 1 Exploded . | . . . . . . Melee . | . . . . . . Uniques/NPCs Destroyed . | . . . . . . Combat | -11 -10 -9 -9 -8 -8 -------- Run | Scr Mat Mat Min Mat Sto Damage Taken 2610 | . . 797 . 124 1689 Core 664 | . . 112 . 14 538 Absorbed by Shields . | . . . . . . Core Remaining (%) 90 | 100 100 . 72 . . Volleys Fired 71 | 13 . 29 . 5 24 Largest 4 | 2 . 4 . 4 4 Hottest 134 | 90 . 130 . 122 134 Shots Fired 229 | 25 . 109 . 20 75 Gun 229 | 25 . 109 . 20 75 Cannon . | . . . . . . Launcher . | . . . . . . Special . | . . . . . . Kinetic 158 | . . 91 . 15 52 Thermal 71 | 25 . 18 . 5 23 Explosive . | . . . . . . Electromagnetic . | . . . . . . Robot Hit Streak 10 | 5 . 10 . 5 8 Robot Miss Streak 6 | 3 . 3 . 4 6 Penetration Max . | . . . . . . Secondary Targets 6 | . . 2 . . 4 Max Gunslinging Chain 1 | . . 1 . . 1 Shots Hit Robots 127 | 14 . 63 . 9 41 Core Hits 62 | 5 . 27 . 6 24 Critical Hits 1 | . . . . . 1 Critical Kills 1 | . . . . . 1 Critical Parts Destroyed . | . . . . . . Melee Attacks . | . . . . . . Impact . | . . . . . . Slashing . | . . . . . . Piercing . | . . . . . . Sneak Attacks . | . . . . . . Combat Hostiles . | . . . . . . Follow-up Attacks . | . . . . . . Damage Inflicted 1795 | 152 . 740 . 170 733 Guns 1780 | 152 . 737 . 170 721 Cannons . | . . . . . . Explosions . | . . . . . . Melee . | . . . . . . Ramming 15 | . . 3 . . 12 Kinetic 1195 | . . 590 . 120 485 Thermal 585 | 152 . 147 . 50 236 Explosive . | . . . . . . Electromagnetic . | . . . . . . Impact . | . . . . . . Slashing . | . . . . . . Piercing . | . . . . . . Highest Corruption 2 | . . . . . 2 Average Corruption 1 | . . . . . 1 Corruption Purged . | . . . . . . Effects 6 | . . . . . 6 Message Errors 2 | . . . . . 2 Data Loss (minor) 2 | . . . . . 2 Weapon Failures 2 | . . . . . 2 Overload Shots . | . . . . . . Overflow Damage . | . . . . . . Projectiles . | . . . . . . Explosions . | . . . . . . Melee . | . . . . . . Knockbacks . | . . . . . . Impact . | . . . . . . Kinetic . | . . . . . . Secondary . | . . . . . . Self-Inflicted Damage 6 | . . 1 . . 5 Shots . | . . . . . . Rammed 5 | 1 . 1 . . 3 Targets Rammed 5 | 1 . 1 . . 3 Kicked . | . . . . . . Crushed . | . . . . . . Highest Temperature 190 | 120 . 190 . 90 163 Average Temperature 52 | 44 . 60 . 41 49 Received Heat Transfer 1020 | . . 381 . 45 594 Siege Activations . | . . . . . . Robots Corrupted . | . . . . . . Combat Hostiles . | . . . . . . Parts Fried . | . . . . . . Impact Corruptions . | . . . . . . Robots Melted . | . . . . . . Combat Hostiles . | . . . . . . Parts Melted . | . . . . . . Heat Transferred 1450 | 409 . 337 . 112 592 Parts Sabotaged . | . . . . . . Parts Stolen . | . . . . . . Parts Stripped . | . . . . . . Power Chain Reactions . | . . . . . . Missiles Intercepted . | . . . . . . Alert | -11 -10 -9 -9 -8 -8 ------- Run | Scr Mat Mat Min Mat Sto Peak Influence 291 | 20 28 156 24 134 291 Initial 56 | . 13 11 24 9 56 Average 72 | 7 14 79 24 70 126 Maximum Alert Level 1 | . . . . . 1 Low Security (%) 95 | 100 100 100 100 100 80 Level 1 4 | . . . . . 19 Level 2 . | . . . . . . Level 3 . | . . . . . . Level 4 . | . . . . . . Level 5 . | . . . . . . High Security . | . . . . . . Max Security . | . . . . . . Squads Dispatched . | . . . . . . Investigation . | . . . . . . Extermination . | . . . . . . Reinforcement . | . . . . . . Assault . | . . . . . . Garrison . | . . . . . . Intercept . | . . . . . . Construction Impeded . | . . . . . . Haulers Reinforced . | . . . . . . Stealth | -11 -10 -9 -9 -8 -8 --------- Run | Scr Mat Mat Min Mat Sto Distress Signals 8 | . . 4 . . 4 Communications Jammed . | . . . . . . Distress Signals . | . . . . . . Times Spotted 46 | . 1 18 . 4 23 Peak Tracking Total 5 | . 1 5 . 2 5 Tactical Retreats 1 | . . . . . 1 Traps | -11 -10 -9 -9 -8 -8 ------- Run | Scr Mat Mat Min Mat Sto Traps Triggered 1 | . . . . . 1 Indirectly . | . . . . . . Trap Hack Attempts . | . . . . . . Triggered . | . . . . . . Disarmed . | . . . . . . Reprogrammed . | . . . . . . Reused . | . . . . . . Traps Extracted . | . . . . . . Installed . | . . . . . . Triggered . | . . . . . . Machines | -11 -10 -9 -9 -8 -8 ---------- Run | Scr Mat Mat Min Mat Sto Machines Disabled . | . . . . . . Max in Single Turn . | . . . . . . Machines Sabotaged . | . . . . . . Garrisons Compromised . | . . . . . . Overloaded Fab Kills . | . . . . . . Fab Network Shutdowns . | . . . . . . Hacking | -11 -10 -9 -9 -8 -8 --------- Run | Scr Mat Mat Min Mat Sto Machines Accessed 2 | . . . . . 2 Terminals 2 | . . . . . 2 Fabricators . | . . . . . . Repair Stations . | . . . . . . Recycling Units . | . . . . . . Scanalyzers . | . . . . . . Garrison Access . | . . . . . . Total Hacks 3 | . . . . . 3 Successful 2 | . . . . . 2 Failed 1 | . . . . . 1 Catastrophic . | . . . . . . Database Lockouts . | . . . . . . Manual 2 | . . . . . 2 Terminals 3 | . . . . . 3 Fabricators . | . . . . . . Repair Stations . | . . . . . . Recycling Units . | . . . . . . Scanalyzers . | . . . . . . Garrison Access . | . . . . . . Terminal Hacks 2 | . . . . . 2 Open Door 2 | . . . . . 2 Fabricator Hacks . | . . . . . . Repair Station Hacks . | . . . . . . Recycling Unit Hacks . | . . . . . . Scanalyzer . | . . . . . . Garrison Access Hacks . | . . . . . . Unauthorized Hacks . | . . . . . . Terminals . | . . . . . . Fabricators . | . . . . . . Repair Stations . | . . . . . . Recycling Units . | . . . . . . Scanalyzers . | . . . . . . Garrison Access . | . . . . . . Data Cores Recovered . | . . . . . . Used . | . . . . . . Hacking Detections . | . . . . . . Full Trace Events . | . . . . . . Feedback Events . | . . . . . . Feedback Blocked . | . . . . . . Robot Schematics Acquired . | . . . . . . Robots Built . | . . . . . . Matter . | . . . . . . Time . | . . . . . . Total Robot Build Rating . | . . . . . . Part Schematics Acquired . | . . . . . . Parts Built . | . . . . . . Matter . | . . . . . . Time . | . . . . . . Total Part Build Rating . | . . . . . . Parts Repaired . | . . . . . . Time . | . . . . . . Parts Recycled . | . . . . . . Recycled Matter . | . . . . . . Retrieved Matter . | . . . . . . Retrieved Components . | . . . . . . Parts Scanalyzed . | . . . . . . Part Schematics Acquired . | . . . . . . Parts Damaged . | . . . . . . Bothacking | -11 -10 -9 -9 -8 -8 ------------ Run | Scr Mat Mat Min Mat Sto Used RIF Installer . | . . . . . . Robots Hacked . | . . . . . . Non-combat . | . . . . . . Combat . | . . . . . . Robot Hacks Applied . | . . . . . . Relay Couplers Released . | . . . . . . Robots Rewired . | . . . . . . Allies Hacked . | . . . . . . Hacks Repelled . | . . . . . . Allies | -11 -10 -9 -9 -8 -8 -------- Run | Scr Mat Mat Min Mat Sto Total Allies . | . . . . . . Largest Group . | . . . . . . Highest-Rated Group . | . . . . . . Highest-Rated Ally . | . . . . . . Total Orders . | . . . . . . Ally Attacks . | . . . . . . Total Damage . | . . . . . . Kills . | . . . . . . Allies Corrupted . | . . . . . . Allies Melted . | . . . . . . Intel | -11 -10 -9 -9 -8 -8 ------- Run | Scr Mat Mat Min Mat Sto Robot Analysis Total . | . . . . . . Derelict Logs Recovered 1 | . . . 1 . . Drone Launches . | . . . . . . Drone Recoveries . | . . . . . . Exploration | -11 -10 -9 -9 -8 -8 ------------- Run | Scr Mat Mat Min Mat Sto Turns Passed 2452 | 230 148 986 318 174 596 Spaces Moved 1320 | 149 98 437 181 133 322 Core 35 | 18 . 1 . . 16 Treads 21 | 21 . . . . . Legs 406 | 110 98 165 . . 33 Wheels . | . . . . . . Hover 858 | . . 271 181 133 273 Flight . | . . . . . . Fastest Speed 50 | 50 120 150 176 108 108 Average Speed 159 | 117 144 195 176 108 148 Slowest Speed 750 | 160 150 750 176 112 750 Overloaded Moves . | . . . . . . Propulsion Burnouts . | . . . . . . Robots Hopped . | . . . . . . Cave-ins Triggered . | . . . . . . Exploration Rate (%) 23 | 4 23 29 29 12 45 Regions Visited 5 Branch Regions 2 Pre-discovered Areas . | . . . . . . Known Exits Taken . | . . . . . . Unknown Exits Taken 5 | 1 1 1 1 1 . Scrap Searched . | . . . . . . Spaces Dug . | . . . . . . Terrain Destroyed . | . . . . . . Melee . | . . . . . . Projectile . | . . . . . . AOE . | . . . . . . Terrain Rammed . | . . . . . . Walls Destroyed . | . . . . . . Machines Disabled . | . . . . . . Actions | -11 -10 -9 -9 -8 -8 --------- Run | Scr Mat Mat Min Mat Sto Total 1488 | 176 105 500 181 149 377 Wait 1 | . . . . . 1 Move 1315 | 148 97 436 180 132 322 Hop . | . . . . . . Pick Up 32 | 4 4 9 . 7 8 Fast Attach 16 | 7 2 5 . . 2 Attach 17 | 1 . 6 . 3 7 Detach 7 | 1 2 4 . . . Swap 7 | . . 1 . 2 4 Drop 15 | 1 . 9 1 . 4 Fire 71 | 13 . 29 . 5 24 Melee . | . . . . . . Ram 4 | . . 1 . . 3 Kick 1 | 1 . . . . . Crush . | . . . . . . Escape Stasis . | . . . . . . Rewire 2 | . . . . . 2 Trap . | . . . . . . Miscellaneous . | . . . . . . Route ------- -11/Scrapyard -10/Materials -9/Materials -9/Mines -8/Materials -8/Storage History --------- Turn | Location | Event 11 | -11/Scrapyard | Discovered new exit (range 16) 231 | -11/Scrapyard | Entered Materials 304 | -10/Materials | Build established: Mutant 335 | -10/Materials | Discovered new exit (range 15) 379 | -10/Materials | Entered another Materials area 379 | -9/Materials | Evolved 2 slots: Weapon x2 674 | -9/Materials | Build established: Gunner 1299 | -9/Materials | Discovered new exit (range 16) 1365 | -9/Materials | Entered Mines 1661 | -9/Mines | Learned Materials emergency access door positions 1661 | -9/Mines | Discovered new exit (range 8) 1665 | -9/Mines | Build established: Scavenger-Gunner 1683 | -9/Mines | Entered Materials 1683 | -8/Materials | Evolved 2 slots: Propulsion x2 1781 | -8/Materials | Discovered new exit (range 7) 1857 | -8/Materials | Entered Storage 2266 | -8/Storage | Lost 7 parts (1p4n2w) 2429 | -8/Storage | Core integrity fell below 50% 2441 | -8/Storage | Core integrity fell below 20% 2452 | -8/Storage | Lost 9 parts (2p1n6w) 2453 | -8/Storage | Destroyed by Y-45 Defender with Beam Rifle Last Messages --------------- 02360_ System corrupted: Component data lost. 02372_ Aluminum Leg destroyed. 02375_ Component Storage disabled. 02377_ K-01 Serf collects debris. 02379_ Slammed into A-02 Transporter. 02390_ Hvy. Assault Rifle destroyed. 02394_ K-01 Serf collects debris. 02396_ Shotgun destroyed. 02403_ K-01 Serf cleans the Component Storage. 02409_ Connecting with Door Terminal... 02412_ Sml. Laser destroyed. 02414_ K-01 Serf cleans the Component Storage. 02421_ Lgt. Ion Engine destroyed. 02421_ Mining Laser destroyed. 02422_ W-25 Informer sends out distress signal. 02435_ Connecting with Door Terminal... >>Open Sealed Heavy Doors opened. 02437_ K-01 Serf cleans the Component Storage. 02444_ B4U2HZYR PSOA A%GTP7G,FVRXWALG2WG& Map ----- +----------------------------------------------------+ | ?????????????????????????????????????????????? | | ?????????????????????????????????????????????? | | ?????????????????????????????????????????????? | | ???????????????????######### ?##########?????? | | ???????????????????? # ?????? | | ???????????????????# # #?????? | | ???????????????????# # """ """ #?????? | | ???????????????????# """ """ # """ """ #?????? | | ???????????????????# """ """ # """ """ #?????? | | ???????????????????# """ """ # #??##"" | | ???????????????????# # #??#T | | ??????# ??????????# # % #???# | | ??????# ###+###########+#########+##+######+ | | ??????# %==[ | | ??????# *%! | | ??????# "" """"" """"" """"" """"" | | ????????# "T """"" """"" """"" """"" | | ????????# "" " """ """"" """"" """"" | | ????????# = | | ????????# ! [= | | ????????# ########+###################### | | ????????#+## ?????## #???????????????# % | | ??????? ??# ??????#TYY #???????????????# | | ?????? ????# ?????###Y ##???????????????# | | ???????????# ??????# !#???????????????# | | ???????????+ ??????#!@ !#???????????????# | | ???????????#???????#!! !!!#???????????????# / | | ???????????????????#!! !!!#???????????????# | | ???????????????????########???????????????###+ | | ????????????????????????????????????????????# | | ????????????????????????????????????????????#? | | ?????????????????????????????????????????????? | | ?????????????????????????????????????????????? | | ?????????????????????????????????????????????? | | ?????????????????????????????????????????????? | | ?????????????????????????????????????????????? | | ?????????????????????????????????????????????? | | ?????????????????????????????????????????????? | | ?????????????????????????????????????????????? | | ?????????????????????????????????????????????? | | ?????????????????????????????????????????????? | | ?????????????????????????????????????????????? | | ?????????????????????????????????????????????? | | ?????????????????????????????????????????????? | | ?????????????????????????????????????????????? | | ?????????????????????????????????????????????? | | ?????????????????????????????????????????????? | | ?????????????????????????????????????????????? | | ?????????????????????????????????????????????? | | ?????????????????????????????????????????????? | +----------------------------------------------------+ Best States ------------- Heat Dissipation 31 Energy Generation 14 Energy Capacity 280 Matter Stores 308 Matter Capacity 350 Sight Range 16 Terrain Scan Density 10 Evasion (%) 40 Recoil Reduction 1 Item Schematics ----------------- None Robot Schematics ------------------ None Fabricated ------------ Nothing Alien Tech Used ----------------- None Achievements -------------- Crack Shot Risk Taker Challenges ------------ None Game ------ Seed ZioniteShrapnelScythe Manual? 0 Play Time 00:29:31 Cumulative 1.6 hours Start 2020.11.07 @ 20:31:30 End 2020.11.07 @ 21:00:31 Sessions 1 Manual Loads 0 Difficulty Rogue Special Mode None Game No. 4 Rogue 4 Adventurer 0 Explorer 0 Win Type - Total 0 Types 0/0/0/0/0/0/0/0/0 Lore% 0 Gallery% 3 Achievement% 2 Wizard Run 0 Options --------- ASCII 0 Keyboard 1 Movement Arrows Keybinds 0 Fullscreen 0 Font 20/X11 Map View 76x50 Tactical HUD 1 Map Filters NONE Filters NONE Steam 1 RUN: 89588863-594e-43c6-8ef9-022b842487ee